Cogmind - Beta 14 @@@ ROGUE MODE // 2024.09.18 @ 00:17:50 Player: Duduxx Result: Destroyed by G-47 Trooper with Particle Gun Performance ------------- Evolutions (2) 1000 Regions Visited (6) 1200 Robots Destroyed (38) 190 Value Destroyed (1218) 1218 Prototype IDs (4) 80 Alien Tech Used (0) 0 Bonus (0) 0 TOTAL SCORE: 3688 Bonus ------- None Cogmind --------- Core Integrity 0/550 Matter 300/300 Energy 245/265 System Corruption 0% Temperature Warm (135) Movement Treading (240) Ox1 Location -8/Materials Parts ------- > --- POWER (1) -------- Reinforced Ion Engine > --- PROPULSION (4) --- Light Treads Light Treads > --- UTILITY (4) ------ Improved Heat Sink Large Storage Unit Advanced Visual Processing Unit Improved Targeting Computer > --- WEAPON (2) ------- Heavy Particle Cannon Ion Cannon > --- INVENTORY (15) --- Hover Unit Hover Unit Airjet Improved VTOL Module Medium Storage Unit Weight Redist. System Advanced Weight Redist. System Target Analyzer Hacking Suite Heavy Particle Cannon Gauss Rifle Rocket Launcher Mining Laser Peak State ------------ > --- POWER ------------ Reinforced Ion Engine > --- PROPULSION ------- Light Treads Light Treads > --- UTILITY ---------- Improved Heat Sink Large Storage Unit Advanced Visual Processing Unit Improved Targeting Computer > --- WEAPON ----------- Heavy Particle Cannon Ion Cannon > --- INVENTORY -------- Hover Unit Hover Unit Airjet Improved VTOL Module Medium Storage Unit Weight Redist. System Advanced Weight Redist. System Target Analyzer Hacking Suite Heavy Particle Cannon Gauss Rifle Rocket Launcher Mining Laser [Rating: 22] Favorites ----------- Power Reinforced Ion Engine Engine Reinforced Ion Engine Propulsion Light Treads Treads Light Treads Leg Aluminum Leg Hover Unit Hover Unit Flight Unit Improved VTOL Module Utility Large Storage Unit Device Advanced Weight Redist. System Storage Large Storage Unit Processor Improved Targeting Computer Protection Hardened Light Armor Plating Weapon Heavy Assault Rifle Energy Gun EM Shotgun Energy Cannon Heavy Particle Cannon Ballistic Gun Heavy Assault Rifle Launcher Mini Grenade Launcher Special Weapon Mining Laser Build | -11 -10 -9 -9 -9 -8 -8 ------- Run | Yrd Mat Mat Min Exi Min Mat Slots Evolved 4 | . . 2 . . . 2 Power . | . . . . . . . Propulsion 2 | . . 1 . . . 1 Utility 2 | . . 1 . . . 1 Weapon . | . . . . . . . Parts Attached 46 | 6 3 14 1 . . 22 Power 6 | 1 1 3 . . . 1 Engine 6 | 1 1 3 . . . 1 Core . | . . . . . . . Reactor . | . . . . . . . Propulsion 12 | 2 . 6 . . . 4 Treads 8 | 2 . 4 . . . 2 Leg 2 | . . 2 . . . . Wheel . | . . . . . . . Hover 1 | . . . . . . 1 Flight 1 | . . . . . . 1 Utility 12 | 1 1 4 . . . 6 Device 3 | . . . . . . 3 Storage 3 | 1 . 2 . . . . Processor 3 | . . 1 . . . 2 Hackware . | . . . . . . . Protection 3 | . 1 1 . . . 1 Artifact . | . . . . . . . Weapon 16 | 2 1 1 1 . . 11 Energy Gun 5 | 1 . . 1 . . 3 Energy Cannon 4 | . . . . . . 4 Ballistic Gun 3 | 1 1 1 . . . . Ballistic Cannon . | . . . . . . . Launcher 2 | . . . . . . 2 Special Weapon 2 | . . . . . . 2 Impact Weapon . | . . . . . . . Slashing Weapon . | . . . . . . . Piercing Weapon . | . . . . . . . Special Melee Weapon . | . . . . . . . Unidentified Prototypes 2 | . . 1 . . . 1 Parts Lost 18 | . . 2 1 . . 15 Power 1 | . . . . . . 1 Propulsion 4 | . . . . . . 4 Utility 4 | . . 1 . . . 3 Weapon 9 | . . 1 1 . . 7 Highest Loss Streak 15 | . . 2 1 . . 15 To Critical Strikes . | . . . . . . . Average Slot Usage (%) 85 | . 96 91 100 100 100 73 Engine 10 | . 14 11 11 11 11 8 Treads 21 | . 28 24 33 33 33 14 Device 1 | . . . . . . 2 Storage 10 | . 14 11 11 11 11 9 Processor 11 | . . 7 11 11 11 16 Protection 8 | . 11 11 11 11 11 4 Energy Gun 1 | . 2 . 3 11 11 1 Energy Cannon 6 | . . . . . . 13 Ballistic Gun 11 | . 25 22 18 11 11 . Peak Build Rating 22 | 6 10 14 14 14 14 22 Average Rating 14 | 4 9 11 13 14 14 17 On Entrance 10 | . 6 10 14 14 14 14 Naked Turns . | . . . . . . . Heaviest Build 50 | 11 25 50 41 41 41 49 Greatest Support 60 | 40 40 60 60 60 60 60 Greatest Overweight (x) 13 | 2 . 3 . . . 13 Average Overweight (x) . | . . . . . . 1 Largest Inventory Capacity 15 | 8 8 15 15 15 15 15 Average Capacity 13 | 7 8 14 15 15 15 15 Most Carried 13 | 1 3 8 9 8 8 13 Average Carried 6 | . 2 4 8 8 8 8 Final Capacity 15 | 8 8 15 15 15 15 15 Final Carried 13 | 1 3 8 8 8 8 13 Class Distribution -------------------- 100% | Mutant Dominant Class ---------------- Mutant | -10/Materials Mutant | -9/Materials Mutant | -9/Mines Mutant | -9/Exiles Mutant | -8/Mines Mutant | -8/Materials Resources | -11 -10 -9 -9 -9 -8 -8 ----------- Run | Yrd Mat Mat Min Exi Min Mat Matter Collected 995 | 210 136 275 167 . . 207 Remotely . | . . . . . . . Salvage Created 1470 | . 226 296 320 . . 628 Parts 72 | . 13 20 17 . . 22 Haulers Intercepted 2 | . . 1 . . . 1 Recyclers Shooed 2 | . . . . . . 2 Parts Field Recycled . | . . . . . . . Retrieved Matter . | . . . . . . . Parts Self-Destructed . | . . . . . . . Prevented . | . . . . . . . Kills | -11 -10 -9 -9 -9 -8 -8 ------- Run | Yrd Mat Mat Min Exi Min Mat Combat Hostiles Destroyed 33 | . 7 5 9 . . 12 Guns 22 | . 7 5 9 . . 1 Cannons 8 | . . . . . . 8 AOE 3 | . . . . . . 3 Classes Destroyed 9 | . 2 3 3 . . 1 Builder 1 | . . . 1 . . . Tunneler 1 | . . . 1 . . . Hauler 2 | . . 1 . . . 1 Watcher 1 | . . 1 . . . . Swarmer 6 | . 3 . 3 . . . Grunt 20 | . 4 3 5 . . 8 Brawler 1 | . . . 1 . . . Sentry 5 | . . 2 . . . 3 Hunter 1 | . . . . . . 1 Best Kill Streak 7 | . 4 3 7 . . 5 Combat Bots Only 6 | . 4 2 6 . . 5 Max Kills in Single Turn 2 | . 1 1 1 . . 2 Gunslinging . | . . . . . . . Exploded 2 | . . . . . . 2 Melee . | . . . . . . . Uniques/NPCs Destroyed . | . . . . . . . Combat | -11 -10 -9 -9 -9 -8 -8 -------- Run | Yrd Mat Mat Min Exi Min Mat Hostile Shots Fired 324 | . 31 68 40 . . 185 Missed 84 | . 10 21 7 . . 46 Damage Taken 3184 | . 203 671 372 . . 1938 Core 686 | . 10 99 23 . . 554 Absorbed by Shields 112 | . . . . . . 112 Core Remaining (%) 88 | 100 96 . . . 69 . Volleys Fired 113 | . 14 28 24 . . 47 Largest 2 | . 2 2 2 . . 2 Hottest 175 | . 43 46 68 . . 175 Shots Fired 213 | . 28 56 46 . . 83 Gun 147 | . 28 56 46 . . 17 Cannon 60 | . . . . . . 60 Launcher 4 | . . . . . . 4 Special 2 | . . . . . . 2 Kinetic 134 | . 28 56 42 . . 8 Thermal 64 | . . . . . . 64 Explosive 4 | . . . . . . 4 Electromagnetic 11 | . . . 4 . . 7 Robot Hit Streak 19 | . 5 19 15 . . 11 Robot Miss Streak 3 | . 2 2 3 . . 3 Penetration Max . | . . . . . . . Secondary Targets 5 | . 2 . 2 . . 1 Max Gunslinging Chain 1 | . 1 . 1 . . 1 Shots Hit Robots 152 | . 18 45 32 . . 57 Core Hits 63 | . 9 12 12 . . 30 Critical Kills . | . . . . . . . Critical Parts Destroyed 1 | . . 1 . . . . Critical Strikes 1 | . . 1 . . . . Destroy 1 | . . 1 . . . . Melee Attacks . | . . . . . . . Impact . | . . . . . . . Slashing . | . . . . . . . Piercing . | . . . . . . . Sneak Attacks . | . . . . . . . Combat Hostiles . | . . . . . . . Follow-up Attacks . | . . . . . . . Damage Inflicted 2954 | . 267 661 453 . . 1573 Guns 1578 | . 256 653 444 . . 225 Cannons 1010 | . . . . . . 1010 Explosions 335 | . . . . . . 335 Melee . | . . . . . . . Ramming 31 | . 11 8 9 . . 3 Kinetic 1422 | . 256 653 408 . . 105 Thermal 1046 | . . . . . . 1046 Explosive 335 | . . . . . . 335 Electromagnetic 120 | . . . 36 . . 84 Impact . | . . . . . . . Slashing . | . . . . . . . Piercing . | . . . . . . . Highest Corruption . | . . . . . . . Average Corruption . | . . . . . . . Corruption Purged . | . . . . . . . Corruption Blocked . | . . . . . . . Overload Shots . | . . . . . . . Overflow Damage 11 | . . . . . . 11 Projectiles 11 | . . . . . . 11 Explosions . | . . . . . . . Melee . | . . . . . . . Knockbacks . | . . . . . . . Impact . | . . . . . . . Kinetic . | . . . . . . . Secondary . | . . . . . . . Self-Inflicted Damage 32 | . . . . . . 32 Shots 3 | . . . . . . 3 Rammed 6 | . 1 3 1 . . 1 Targets Rammed 8 | . 1 3 3 . . 1 Kicked . | . . . . . . . Crushed 2 | . . . 2 . . . Highest Temperature 462 | . 132 202 147 . . 462 Average Temperature 98 | . 53 74 41 . . 140 Received Heat Transfer 1446 | . 78 273 144 . . 951 Effects 3 | . . . . . . 3 Shutdowns 1 | . . . . . . 1 Energy Bleed 1 | . . . . . . 1 Interference 1 | . . . . . . 1 Siege Activations . | . . . . . . . Robots Corrupted . | . . . . . . . Combat Hostiles . | . . . . . . . Parts Fried 1 | . . . . . . 1 Impact Corruptions . | . . . . . . . Robots Melted . | . . . . . . . Combat Hostiles . | . . . . . . . Parts Melted 1 | . . . . . . 1 Heat Transferred 1599 | . . . . . . 1599 Parts Sabotaged . | . . . . . . . Parts Stolen . | . . . . . . . Parts Stripped . | . . . . . . . Power Chain Reactions . | . . . . . . . Alert | -11 -10 -9 -9 -9 -8 -8 ------- Run | Yrd Mat Mat Min Exi Min Mat Peak Influence 234 | . 177 181 234 . . 144 Initial 74 | . . 74 24 . . . Average 73 | . 50 92 120 . . 62 Maximum Alert Level 1 | . . . 1 . . . Low Security (%) 95 | 100 100 100 64 . 100 100 Level 1 4 | . . . 35 . . . Level 2 . | . . . . . . . Level 3 . | . . . . . . . Level 4 . | . . . . . . . Level 5 . | . . . . . . . High Security . | . . . . . . . Max Security . | . . . . . . . Squads Dispatched 8 | . 2 2 . . . 4 Investigation 2 | . 2 . . . . . Extermination . | . . . . . . . Reinforcement 6 | . . 2 . . . 4 Assault . | . . . . . . . Garrison . | . . . . . . . Intercept . | . . . . . . . Searches Triggered . | . . . . . . . Construction Impeded 1 | . . . . . . 1 Haulers Reinforced . | . . . . . . . Active Scanning Responses . | . . . . . . . Cargo Convoy Interrupts . | . . . . . . . Stealth | -11 -10 -9 -9 -9 -8 -8 --------- Run | Yrd Mat Mat Min Exi Min Mat Distress Signals 1 | . . 1 . . . . Communications Jammed . | . . . . . . . Distress Signals . | . . . . . . . Times Spotted 47 | . 8 11 9 . . 19 Peak Tracking Total 6 | . 4 3 4 . . 6 Tactical Retreats 2 | . . . . . . 2 Traps | -11 -10 -9 -9 -9 -8 -8 ------- Run | Yrd Mat Mat Min Exi Min Mat Traps Triggered 1 | . 1 . . . . . Indirectly . | . . . . . . . Trap Hack Attempts . | . . . . . . . Triggered . | . . . . . . . Disarmed . | . . . . . . . Reprogrammed . | . . . . . . . Reused . | . . . . . . . Traps Extracted . | . . . . . . . Installed . | . . . . . . . Triggered . | . . . . . . . Machines | -11 -10 -9 -9 -9 -8 -8 ---------- Run | Yrd Mat Mat Min Exi Min Mat Machines Disabled 1 | . . . . . . 1 Max in Single Turn 1 | . . . . . . 1 Machines Repaired . | . . . . . . . Machines Dismantled . | . . . . . . . Machines Sabotaged . | . . . . . . . Overloaded Fab Kills . | . . . . . . . Hacking | -11 -10 -9 -9 -9 -8 -8 --------- Run | Yrd Mat Mat Min Exi Min Mat Machines Accessed 5 | . 3 1 . . . 1 Terminals 4 | . 2 1 . . . 1 Fabricators . | . . . . . . . Repair Stations . | . . . . . . . Recycling Units 1 | . 1 . . . . . Scanalyzers . | . . . . . . . Garrison Access . | . . . . . . . Total Hacks 10 | . 5 3 . . . 2 Successful 4 | . 2 2 . . . . Failed 6 | . 3 1 . . . 2 Catastrophic 1 | . 1 . . . . . Database Lockouts . | . . . . . . . Manual 7 | . 4 1 . . . 2 Terminals 9 | . 4 3 . . . 2 Fabricators . | . . . . . . . Repair Stations . | . . . . . . . Recycling Units 1 | . 1 . . . . . Scanalyzers . | . . . . . . . Garrison Access . | . . . . . . . Terminal Hacks 3 | . 1 2 . . . . Prototype ID Bank 1 | . . 1 . . . . Hauler Manifests 2 | . 1 1 . . . . Fabricator Hacks . | . . . . . . . Repair Station Hacks . | . . . . . . . Recycling Unit Hacks 1 | . 1 . . . . . Report Inventory 1 | . 1 . . . . . Scanalyzer . | . . . . . . . Garrison Access Hacks . | . . . . . . . Unauthorized Hacks . | . . . . . . . Terminals . | . . . . . . . Fabricators . | . . . . . . . Repair Stations . | . . . . . . . Recycling Units . | . . . . . . . Scanalyzers . | . . . . . . . Garrison Access . | . . . . . . . Data Cores Recovered . | . . . . . . . Used . | . . . . . . . Hacking Detections 2 | . 1 . . . . 1 Full Trace Events 1 | . 1 . . . . . Feedback Events . | . . . . . . . Feedback Blocked . | . . . . . . . Robot Schematics Acquired . | . . . . . . . Robots Built . | . . . . . . . Authchips . | . . . . . . . Time . | . . . . . . . Total Robot Build Rating . | . . . . . . . Part Schematics Acquired . | . . . . . . . Parts Built . | . . . . . . . Authchips . | . . . . . . . Time . | . . . . . . . Total Part Build Rating . | . . . . . . . Parts Repaired . | . . . . . . . Time . | . . . . . . . Parts Recycled . | . . . . . . . Recycled Matter . | . . . . . . . Retrieved Matter . | . . . . . . . Retrieved Components . | . . . . . . . Parts Scanalyzed . | . . . . . . . Part Schematics Acquired . | . . . . . . . Parts Damaged . | . . . . . . . Bothacking | -11 -10 -9 -9 -9 -8 -8 ------------ Run | Yrd Mat Mat Min Exi Min Mat Used RIF Installer . | . . . . . . . Robots Hacked . | . . . . . . . Non-combat . | . . . . . . . Combat . | . . . . . . . Robot Hacks Applied . | . . . . . . . Relay Couplers Released . | . . . . . . . Fabnet Peak Effective % . | . . . . . . . Robots Rewired . | . . . . . . . Allies Hacked . | . . . . . . . Hacks Repelled . | . . . . . . . Allies | -11 -10 -9 -9 -9 -8 -8 -------- Run | Yrd Mat Mat Min Exi Min Mat Total Allies . | . . . . . . . Largest Group . | . . . . . . . Highest-Rated Group . | . . . . . . . Highest-Rated Ally . | . . . . . . . Total Orders . | . . . . . . . Ally Attacks . | . . . . . . . Total Damage . | . . . . . . . Kills . | . . . . . . . Allies Corrupted . | . . . . . . . Allies Melted . | . . . . . . . Intel | -11 -10 -9 -9 -9 -8 -8 ------- Run | Yrd Mat Mat Min Exi Min Mat Robot Analysis Total . | . . . . . . . Derelict Logs Recovered . | . . . . . . . Drone Launches . | . . . . . . . Drone Recoveries . | . . . . . . . Exploration | -11 -10 -9 -9 -9 -8 -8 ------------- Run | Yrd Mat Mat Min Exi Min Mat Turns Passed 2385 | 63 279 526 298 104 20 1095 Spaces Moved 1009 | 36 142 248 136 66 13 368 Core 17 | 8 . . . . . 9 Treads 990 | 28 142 246 136 66 13 359 Legs 2 | . . 2 . . . . Wheels . | . . . . . . . Hover . | . . . . . . . Flight . | . . . . . . . Fastest Speed 50 | 50 160 160 160 160 160 160 Average Speed 192 | 150 160 162 160 160 160 247 Slowest Speed 700 | 160 160 330 160 160 160 700 Overloaded Moves . | . . . . . . . Propulsion Burnouts . | . . . . . . . Robots Hopped . | . . . . . . . Cave-ins Triggered . | . . . . . . . Exploration Rate (%) 20 | 3 29 26 36 10 7 34 Regions Visited 6 Branch Regions 3 Pre-discovered Areas . | . . . . . . . Known Exits Taken . | . . . . . . . Unknown Exits Taken 6 | 1 1 1 1 1 1 . Scrap Searched . | . . . . . . . Spaces Dug 3 | . . . . . . 3 Terrain Destroyed 29 | . . . . . . 29 Melee . | . . . . . . . Projectile 13 | . . . . . . 13 AOE 16 | . . . . . . 16 Terrain Rammed . | . . . . . . . Walls Destroyed . | . . . . . . . Machines Disabled . | . . . . . . . Actions | -11 -10 -9 -9 -9 -8 -8 --------- Run | Yrd Mat Mat Min Exi Min Mat Total 1226 | 42 166 315 169 65 12 457 Wait 16 | . . 4 5 . . 7 Move 1003 | 35 141 247 135 65 12 368 Hop . | . . . . . . . Pick Up 21 | 1 3 6 1 . . 10 Fast Attach 26 | 6 2 7 . . . 11 Attach 9 | . . 3 1 . . 5 Detach 8 | . 1 6 . . . 1 Swap 11 | . 1 4 . . . 6 Drop 11 | . 3 7 . . . 1 Fire 113 | . 14 28 24 . . 47 Melee . | . . . . . . . Ram . | . . . . . . . Kick . | . . . . . . . Crush 8 | . 1 3 3 . . 1 Escape Stasis . | . . . . . . . Rewire . | . . . . . . . Trap . | . . . . . . . Miscellaneous . | . . . . . . . Route ------- -11/Scrapyard -10/Materials -9/Materials -9/Mines (discovered 2 exits: [*Exi] / [*Zio]) -9/Exiles -8/Mines -8/Materials History --------- Turn | Location | Event 25 | -11/Scrapyard | Discovered new exit (range 16) 64 | -11/Scrapyard | Entered Materials 253 | -10/Materials | Discovered new exit (range 14) 302 | -10/Materials | Build established: Mutant 343 | -10/Materials | Entered another Materials area 343 | -9/Materials | Evolved 2 slots: Propulsion x1, Utility x1 843 | -9/Materials | Discovered new exit (range 12) 869 | -9/Materials | Entered Mines 896 | -9/Mines | Received a Rocket Launcher from a helpful Derelict 1013 | -9/Mines | A Derelict revealed a hidden shortcut to a safe place 1159 | -9/Mines | Deemed a non-threat by the Exiles lab entrance 1161 | -9/Mines | Discovered new exit (range 5) 1167 | -9/Mines | Entered Exiles 1167 | -9/Exiles | Found Exiles lab destroyed 1246 | -9/Exiles | Discovered new exit (range 15) 1271 | -9/Exiles | Entered Mines 1284 | -8/Mines | Discovered new exit (range 5) 1291 | -8/Mines | Entered Materials 1291 | -8/Materials | Evolved 2 slots: Propulsion x1, Utility x1 1427 | -8/Materials | Core integrity fell below 50% 1449 | -8/Materials | Core integrity fell below 20% 1476 | -8/Materials | Lost 15 parts (1p4n3u7w) 2386 | -8/Materials | Destroyed by G-47 Trooper with Particle Gun Last Messages --------------- 02326_ Dropped Med. Armor Plating. 02326_ R-06 Scavenger collects Med. Armor Plating. 02341_ Acquired Gauss Rifle. 02343_ O-16 Technician: "IFF HANDSHAKE FAILED. SECURING TERMINAL." 02345_ ALERT: Hostiles spotted, dispatching reinforcements to Terminal M010. 02350_ Critical hit (Burn: +37). 02350_ Destroyed Aluminum Leg. 02358_ G-47 Trooper heat spikes uncontrollably. 02361_ U-05 Engineer builds a Wall. 02368_ G-47 Trooper destroyed. 02370_ K-01 Serf collects debris. 02376_ Acquired 10 matter. 02380_ U-05 Engineer builds a Wall. 02380_ K-01 Serf collects debris. 02384_ Destroyed Terrain Scanner. 02384_ K-01 Serf collects debris. 02385_ U-05 Engineer builds a Wall. Map ----- +----------------------------------------------------+ | ?????????????????????????????????????????????????? | | ?????????????????????????????????????????????????? | | ????????????????????????????????????##########???? | | ????????????????????????????????????# ! #???? | | ???????????????????????????????? ???# """ #???? | | ???????????????????????????????? ???# """ #???? | | ???????????????????????????????? ???# """ ##### | | ?????????????????????????????###/#### ## | | ?????????????????????????????# ## """ ## | | ???????????????????#######???# ## """ ## " | | ???????????????????? ##?# + """ ## " | | ???????????????????? ! ## ## " | | ????????????????????? ######+##### | | ??????????????????????# """ #?# | | ??????????????????????# g """"" # # | | ??????????????????????#og """"" ### | | ??????????????????????# g """ " u#?# #######+# | | ??????????????????????# "" #?# ###### | | ??????????????????????# #?# # ! # | | ??????????????????????# ] ### # # " | | ??????????????????????# u!! + # " | | ?????????????????????## !! # ! # " | | ?????????????????????## #[ | | ???????????????######## ####+####+##### | | ???????????????# k # % # | | ???????????????# @ + % # | | ???????????????# ### # | | ???????????????+ ###+#########%#?#% ]] # | | ???????????????????? ????????## #?# # ^ | | ???????????????????# ??????????# #?# % ###+# | | ???????????????????????????????# #?# # | | ???????????????????????????????# #?# + | | ???????????????????????????????# #?###### #### | | ???????????????????????????????# #??????###??# | | ???????????????????????????????# ############## # | | ???????????????????????????????# + # # | | ???????????????????????????????#+##### """" # # | | ???????????????????????????????# ??# """" !# # | | ???????????????????????????????# ## """" # # | | ???????????????????????????????# ## + # | | ???????????????????????????????# ## """" # # | | ???????????????????????????????# ## """" [# # | | ???????????????????????????????# ## """" # # | | ???????????????????????????????# ## # # | | ???????????????????????????????# ########### # | | ???????????????????????????????# ## # + | | ???????????????????????????????#######! """ + # | | ?????????????????????????????????????# """ # # | | ?????????????????????????????????????# """ # | | ?????????????????????????????????????# """ # | +----------------------------------------------------+ Best States ------------- Heat Dissipation 45 Energy Generation 12 Energy Capacity 265 Matter Stores 300 Matter Capacity 300 Sight Range 20 Terrain Scan Density 10 Additional Mass Support 9 Armor Coverage 225 Evasion (%) 40 Targeting Accuracy 11 Recoil Reduction 3 Item Schematics ----------------- None Robot Schematics ------------------ None Fabricated ------------ Nothing Alien Tech Used ----------------- None Achievements -------------- None Challenges ------------ None Game ------ Seed TitaniumChromaticLauncher Manual? 0 Play Time 00:16:40 Cumulative 45.1 hours Start 2024.09.18 @ 00:02:24 End 2024.09.18 @ 00:17:50 Sessions 1 Manual Loads 0 Difficulty Rogue Special Mode None Game No. 101 Rogue 101 Adventurer 0 Explorer 0 Win Type - Total 0 Types 0/0/0/0/0/0/0/0/0 Lore% 16 Gallery% 32 Achievement% 26 Wizard Run 0 Options --------- Layout 1 ASCII 0 Keyboard 1 Movement Arrows Keybinds 0 Fullscreen 1 Font 24/Smallcaps Map View 50x35 Zoom Use 0% Tactical HUD 1 Map Filters NONE Filters NONE Steam 1 RUN: b2d76424-24cd-453b-bdc9-eb5e459b880a